bitfinex-derivatives/quotes_ETHF0:USTF0_20250403
["timestamp","ask_amount","ask_price","bid_price","bid_amount"]
[1743681923287,1.11515,1793.8,1793.7,1.11519]
[1743681923483,8.13159,1794.2,1793.8,12.40714618]
[1743681923689,4.6232,1794.2,1793.8,13.52225618]
[1743681923894,2.78696,1794.4,1793.9,12.40714618]
[1743681924095,1.11499,1794.1,1794.0,0.7253]
[1743681924395,1.11499,1794.1,1794.0,53.93244618]
[1743681925300,3.2078,1794.5,1794.3,1.11482]
[1743681925592,3.2078,1794.5,1794.3,1.11484]
[1743681925593,4.32256,1794.5,1794.3,1.11484]
[1743681925798,4.32251,1794.5,1794.4,12.40714618]
[1743681925985,3.2078,1794.5,1794.2,13.52199618]
[1743681926190,1.11482,1794.4,1794.3,12.40714618]
[1743681926398,1.11488,1794.3,1794.2,13.52202618]
[1743681926589,5.99462,1794.5,1794.3,1.11484]
[1743681926590,1.11482,1794.4,1794.3,1.11484]
[1743681926890,4.32253,1794.5,1794.4,1.11477]
[1743681927085,4.32253,1794.5,1794.4,13.52191618]
[1743681928406,4.32253,1794.5,1794.4,12.40714618]
[1743681928793,1.11473,1794.5,1794.4,12.40714618]
[1743681929303,1.11473,1794.5,1794.4,13.52191618]
[1743681932208,1.11473,1794.5,1794.4,12.40714618]
[1743681934101,4.32253,1794.5,1794.4,12.40714618]
[1743681934809,1.11484,1794.3,1794.2,2.3447]
[1743681935111,1.11484,1794.3,1793.9,56.2293633]
[1743681935112,1.11502,1794.0,1793.9,0.0083633]
[1743681935407,1.11533,1793.5,1793.4,1.4072]
[1743681935616,1.11531,1793.6,1793.5,13.52244618]
[1743681935907,1.11526,1793.7,1793.6,1.11525]
[1743681936109,1.11526,1793.7,1793.6,12.40714618]
[1743681936606,2.57446,1793.7,1793.6,12.40714618]
[1743681938107,1.11526,1793.7,1793.6,12.40714618]
[1743681938604,1.11527,1793.6,1793.5,40.8083633]
[1743681938808,4.32307,1793.6,1793.5,0.0083633]
[1743681939510,5.81417,1793.6,1793.5,0.0083633]
[1743681940706,5.81417,1793.6,1793.5,12.41550948]
[1743681940904,5.81417,1793.6,1793.5,0.0083633]
[1743681941411,5.81417,1793.6,1793.5,12.41550948]
[1743681941601,5.81417,1793.6,1793.5,13.86600948]
[1743681942204,4.32307,1793.6,1793.5,13.86600948]
[1743681942404,4.32307,1793.6,1793.5,14.98133948]
[1743681942711,1.11527,1793.6,1793.5,14.98133948]
[1743681942911,1.11527,1793.6,1793.5,55.78133948]
[1743681943807,0.0083633,1793.8,1793.5,54.66600948]
[1743681944103,2.55161,1793.7,1793.6,12.40714618]
[1743681944309,1.11521,1793.7,1793.6,13.52241618]
[1743681944611,1.11521,1793.7,1793.6,14.24021618]
[1743681945006,1.1235533,1793.8,1793.7,1.11521]
[1743681945312,1.1235533,1793.8,1793.7,12.40714618]
[1743681946908,4.3313533,1793.8,1793.7,12.40714618]
[1743681947108,1.11527,1793.6,1793.5,47.2140933]
[1743681947609,1.11526,1793.7,1793.6,1.11522]
[1743681947914,1.11526,1793.7,1793.6,13.52236618]
[1743681948305,1.11526,1793.7,1793.6,12.40714618]
[1743681948611,1.11526,1793.7,1793.6,13.52241618]
[1743681949600,1.11526,1793.7,1793.6,14.22021618]
[1743681950010,1.1235433,1793.8,1793.7,1.11521]
[1743681950201,1.1235433,1793.8,1793.7,14.96735618]
[1743681950408,0.0083633,1793.8,1793.7,14.96735618]
[1743681950606,0.0083633,1793.8,1793.7,17.46735618]
[1743681951112,3.2078,1794.3,1794.2,1.1149]
[1743681951415,1.11493,1794.2,1794.1,1.11491]
[1743681951608,4.32268,1794.3,1794.2,1.1149]
[1743681951802,4.32268,1794.3,1794.2,14.96704618]
[1743681952328,4.32268,1794.3,1794.2,13.85214618]
[1743681952512,4.32268,1794.3,1794.2,12.40714618]
[1743681952712,1.11496,1794.1,1794.0,3.9018]
[1743681953114,1.11496,1794.1,1794.0,16.30894618]
[1743681953412,4.32276,1794.1,1794.0,16.30894618]
[1743681953604,4.32276,1794.1,1794.0,3.9018]
[1743681953809,6.82276,1794.1,1794.0,3.9018]
[1743681954005,9.11536,1794.1,1794.0,3.9018]
[1743681955206,1.11515,1793.8,1793.7,1.8304]
[1743681955406,1.11515,1793.8,1793.7,3.2891]
[1743681955612,1.11515,1793.8,1793.7,13.86584618]
[1743681955810,2.55525,1793.8,1793.7,13.86584618]
[1743681956304,1.11527,1793.6,1793.5,40.8083633]
[1743681956704,1.11527,1793.6,1793.5,54.67420948]
[1743681957010,1.11527,1793.6,1793.5,55.78953948]
[1743681957207,1.11527,1793.6,1793.5,56.53533948]
[1743681958610,2.55767,1793.6,1793.5,54.67420948]
[1743681959112,1.11527,1793.6,1793.5,54.67420948]
[1743681959313,1.11527,1793.6,1793.5,55.78953948]
[1743681959509,1.11527,1793.6,1793.5,55.78948948]
[1743681960317,1.11527,1793.6,1793.5,54.67420948]
[1743681960508,1.11527,1793.6,1793.5,55.78953948]
[1743681960913,1.11527,1793.6,1793.5,54.67420948]
[1743681961516,2.62307,1793.6,1793.5,54.67420948]
[1743681962317,2.62307,1793.6,1793.5,40.8083633]
[1743681962518,3.37137,1793.6,1793.5,40.8083633]
[1743681963222,9.82537,1793.6,1793.5,3.3e-06]
[1743681963416,1.1154,1793.4,1793.3,3.3e-06]
[1743681963615,4.3232,1793.4,1793.3,3.3e-06]
[1743681963816,6.8232,1793.4,1793.3,3.3e-06]
[1743681964317,12.7872,1793.4,1793.3,3.3e-06]
[1743681964515,1.11546,1793.3,1793.2,6.6e-06]
[1743681964719,6.58546,1793.3,1793.2,6.6e-06]
[1743681964920,9.08546,1793.3,1793.2,6.6e-06]
[1743681967319,9.1836452,1793.3,1793.2,6.6e-06]
[1743681967915,2.78931,1792.9,1791.8,5.824]
[1743681968220,1.11621,1792.1,1792.0,1.4588]
[1743681968417,1.11613,1792.3,1792.2,1.11614]
[1743681968621,3.954,1792.5,1792.2,1.11609]
[1743681968826,1.11608,1792.3,1792.2,1.11609]
[1743681969012,1.11608,1792.3,1792.2,1.1244533]
[1743681969213,1.11608,1792.3,1792.2,12.41550948]
[1743681969620,0.0083633,1792.5,1792.2,14.91550948]
[1743681969826,1.1243233,1792.5,1792.4,1.11602]
[1743681970027,1.1243233,1792.5,1792.3,13.52318618]
[1743681970218,1.1243233,1792.5,1792.4,12.40714618]
[1743681970622,0.0083633,1792.5,1792.4,13.52316618]
[1743681970819,1.1243233,1792.5,1792.4,12.40714618]
[1743681972223,1.1243233,1792.5,1792.4,16.73096618]
[1743681972428,1.1243233,1792.5,1792.4,15.61494618]
[1743681972625,0.0083633,1792.5,1792.4,16.73096618]
[1743681972824,3.2078,1792.9,1792.6,1.11588]
[1743681973123,1.11577,1792.8,1792.7,12.40714618]
[1743681973324,4.32351,1792.9,1792.8,12.40714618]
[1743681973531,1.11583,1792.7,1792.6,1.11588]
[1743681973827,1.11581,1792.8,1792.7,13.52297618]
[1743681974032,1.1241733,1792.8,1792.7,1.11583]
[1743681974229,1.1241733,1792.8,1792.7,13.52297618]
[1743681974828,0.0083633,1792.8,1792.7,16.02297618]
[1743681975025,0.0083633,1792.8,1792.7,13.52297618]
[1743681975328,1.1241333,1792.8,1792.7,12.40714618]
[1743681975521,1.1241333,1792.8,1792.7,13.52297618]
[1743681975723,1.1241333,1792.8,1792.7,12.40714618]
[1743681976230,2.6048333,1792.8,1792.7,12.40714618]
[1743681976926,1.11596,1792.5,1792.4,3.2078]
[1743681977318,1.11596,1792.5,1792.4,15.61494618]
[1743681977524,1.11596,1792.5,1792.4,16.73096618]
[1743681978225,1.11596,1792.5,1792.4,15.61494618]
[1743681979129,1.11596,1792.5,1792.4,12.40714618]
[1743681980629,1.11608,1792.3,1792.2,2.0276633]
[1743681980828,1.11608,1792.3,1792.2,0.729]
[1743681980829,4.32388,1792.3,1792.2,0.729]
[1743681981127,2.79066,1792.1,1791.5,59.4498]
[1743681981329,1.11634,1791.9,1791.8,3.2078]
[1743681981629,1.11645,1791.7,1791.6,54.32362618]
[1743681981830,1.11645,1791.7,1791.6,45.12428]
[1743681982025,1.11645,1791.7,1791.6,57.53142618]
[1743681982533,1.1248133,1791.8,1791.7,1.11645]
[1743681982732,1.1248133,1791.8,1791.7,13.52359618]
[1743681985139,1.1248133,1791.8,1791.7,14.25759618]
[1743681985437,1.1248133,1791.8,1791.7,14.99769618]
[1743681985935,0.0083633,1791.8,1791.7,17.49769618]
[1743681986234,1.11619,1792.2,1792.1,1.11621]
[1743681986632,1.11611,1792.3,1792.2,1.11609]
[1743681986837,1.11606,1792.4,1792.3,1.11605]
[1743681987038,1.11606,1792.4,1792.3,15.61494618]
[1743681987337,1.1243633,1792.5,1792.4,1.11599]
[1743681987633,1.1243233,1792.5,1792.4,13.52316618]
[1743681987935,1.1243233,1792.5,1792.4,13.79534618]
[1743681989334,1.1243233,1792.5,1792.4,14.91136618]
[1743681990737,1.1243233,1792.5,1792.4,13.79534618]
[1743681990936,1.1243233,1792.5,1792.4,14.91136618]
[1743681991340,1.11583,1792.8,1792.7,1.11581]
[1743681991635,1.11585,1792.7,1792.6,1.11585]
[1743681991837,2.78915,1793.0,1792.7,1.1158]
[1743681991838,1.11582,1792.8,1792.7,1.1158]
[1743681992025,9.9338,1793.1,1792.8,1.11572]
[1743681992026,1.11574,1792.9,1792.8,1.11572]
[1743681992229,1.11574,1792.9,1792.8,13.52286618]
[1743681993525,9.9338,1793.1,1792.9,1.11565]
[1743681993526,1.11568,1793.0,1792.9,1.11565]
[1743681993730,1.11568,1793.0,1792.9,14.93089618]
[1743681994327,1.11568,1793.0,1792.9,14.93095618]
[1743681994533,1.11556,1793.2,1793.1,1.11553]
[1743681994838,1.11549,1793.3,1793.2,1.11546]
[1743681995044,1.11543,1793.4,1793.3,1.1154]
[1743681995245,1.11543,1793.4,1793.3,13.52254618]
[1743681995736,1.11539,1793.5,1793.4,1.1154]
[1743681996035,1.1153,1793.6,1793.5,1.11528]
[1743681996336,1.11526,1793.7,1793.6,1.11527]
[1743681996550,1.11521,1793.7,1793.6,13.52236618]
[1743681996740,3.2078,1793.9,1793.8,1.1151]
[1743681997142,3.2078,1793.9,1793.8,13.52224618]
[1743681997335,1.11511,1793.9,1793.8,13.52224618]
[1743681997841,3.2078,1794.4,1793.8,22.04194618]
[1743681998034,1.11477,1794.5,1794.1,5.99521]
[1743681998339,1.11477,1794.5,1794.4,1.11477]
[1743681998540,5.99424,1794.8,1794.7,1.11459]
[1743681998541,1.11454,1794.8,1794.7,1.11459]
[1743681998737,1.11454,1794.8,1794.6,1.1146]
[1743681998939,1.11454,1794.8,1794.7,1.5]
[1743681999129,1.11454,1794.8,1794.7,13.90714618]
[1743681999642,1.11446,1794.9,1794.8,1.11452]
[1743681999842,1.11446,1794.9,1794.8,13.52166618]
[1743682000336,5.78045,1795.0,1794.8,13.52166618]
[1743682000537,4.32225,1795.0,1794.9,13.90714618]
[1743682001137,4.32225,1795.0,1794.9,54.70714618]
[1743682001739,4.32225,1795.0,1794.9,13.90714618]
[1743682002142,4.32225,1795.0,1794.9,12.40714618]
[1743682004747,8.24025,1795.0,1794.9,12.40714618]
[1743682004951,1.11453,1794.8,1794.7,0.0083633]
[1743682005250,1.11453,1794.8,1794.7,1.5388633]
[1743682005442,1.11453,1794.8,1794.7,0.0083633]
[1743682005844,1.11453,1794.8,1794.7,1.5388633]
[1743682006039,1.11453,1794.8,1794.7,0.0083633]
[1743682006239,5.05853,1794.8,1794.7,0.0083633]
[1743682006547,1.11496,1794.1,1793.9,4.32283]
[1743682006746,1.11495,1794.2,1794.1,12.40714618]
[1743682007047,1.11495,1794.2,1794.1,13.52209618]
[1743682007243,1.11495,1794.2,1794.1,12.40714618]
[1743682008147,1.11495,1794.2,1794.0,58.8246433]
[1743682008148,1.11496,1794.1,1794.0,0.0083633]
[1743682008353,5.75616,1794.1,1794.0,0.0083633]
[1743682009049,1.11521,1793.7,1793.6,40.8]
[1743682009241,1.11533,1793.5,1793.4,57.6613]
[1743682009441,1.11533,1793.5,1793.4,1.4603]
[1743682009642,1.11533,1793.5,1793.4,54.66744618]
[1743682010351,2.54868,1793.6,1793.4,54.66744618]
[1743682010547,3.2078,1793.9,1793.6,1.11527]
[1743682010742,3.2078,1793.9,1793.7,2.56445]
[1743682010743,4.32293,1793.9,1793.7,2.56445]
[1743682011044,1.11513,1793.9,1793.8,1.11515]
[1743682011245,5.85659,1794.1,1793.8,12.40714618]
[1743682011545,4.32276,1794.1,1794.0,1.11502]
[1743682011749,1.11493,1794.2,1794.1,1.11496]
[1743682011948,1.1232433,1794.3,1794.2,1.1149]
[1743682012251,1.1232433,1794.3,1794.0,15.61494618]
[1743682012252,1.1149,1794.2,1794.1,1.4493]
[1743682012441,1.1149,1794.2,1794.1,13.85644618]
[1743682012759,1.1149,1794.2,1794.1,55.77140618]
[1743682012947,1.1149,1794.2,1794.1,55.77136618]
[1743682013152,1.1149,1794.2,1794.1,54.65644618]
[1743682013551,1.1149,1794.2,1794.1,55.77140618]
[1743682014552,1.1232333,1794.3,1794.2,1.1149]
[1743682014754,1.1232333,1794.3,1794.2,14.96164618]
[1743682016249,0.0083633,1794.3,1794.2,14.96164618]
[1743682016858,0.0083633,1794.3,1794.2,55.76164618]
[1743682017454,0.0083633,1794.3,1794.2,58.96944618]
[1743682019060,0.0083633,1794.3,1794.2,54.64674618]
[1743682019358,1.1232033,1794.3,1794.2,54.64674618]
[1743682019551,1.1232033,1794.3,1794.2,55.76164618]
[1743682019757,1.1232033,1794.3,1794.2,54.64674618]
[1743682020160,1.1232033,1794.3,1794.2,13.84674618]
[1743682020458,1.1232033,1794.3,1794.2,14.96164618]
[1743682020759,1.1232033,1794.3,1794.2,55.76164618]
[1743682022661,1.1232033,1794.3,1794.2,54.64674618]
[1743682022855,1.1232033,1794.3,1793.4,5.824]
[1743682022856,2.78725,1794.2,1793.4,5.824]
[1743682023059,2.78725,1794.2,1793.5,1.11529]
[1743682023060,1.1153,1793.6,1793.5,1.11529]
[1743682023364,1.1153,1793.6,1793.5,54.32243618]
[1743682023657,3.904,1793.9,1793.5,53.20714618]
[1743682023857,3.904,1793.9,1793.8,1.11515]
[1743682024053,3.903,1794.1,1793.9,1.11506]
[1743682024259,1.11507,1794.0,1793.9,1.11506]
[1743682024463,9.9082633,1794.3,1794.0,12.40714618]
[1743682024653,9.9082633,1794.3,1794.1,1.4976]
[1743682024654,2.5153,1794.2,1794.1,1.4976]
[1743682024862,2.5153,1794.2,1794.1,13.90474618]
[1743682025359,2.5153,1794.2,1794.1,15.01970618]
[1743682025555,1.1149,1794.2,1794.1,15.01970618]
[1743682025956,1.1149,1794.2,1794.1,13.90474618]
[1743682026155,1.11502,1794.0,1793.9,0.7245]
[1743682026351,6.99004,1794.2,1793.8,1.3963]
[1743682026352,1.11509,1793.9,1793.8,1.3963]
[1743682026567,2.53039,1793.9,1793.8,1.3963]
[1743682026759,5.73819,1793.9,1793.8,12.40714618]
[1743682027960,3.902,1794.0,1793.8,12.40714618]
[1743682028164,3.902,1794.0,1793.9,14.93263618]
[1743682028358,5.72384,1794.2,1794.1,1.11496]
[1743682028558,1.11494,1794.2,1794.0,12.40714618]
[1743682028771,1.11494,1794.2,1794.1,2.52534]
[1743682028953,0.0083633,1794.3,1794.2,1.1149]
[1743682029154,0.0083633,1794.3,1794.2,14.93244618]
[1743682030667,0.0083633,1794.3,1794.2,15.65824618]
[1743682031770,1.11457,1794.8,1794.7,1.11459]
[1743682032265,1.20294287,1795.4,1794.9,2.78601]
[1743682032460,2.78524,1795.5,1795.1,1.11429]
[1743682032660,1.11422,1795.3,1795.2,1.4997]
[1743682032856,1.11422,1795.3,1795.2,43.41398]
[1743682033172,1.11422,1795.3,1795.2,55.82107618]
[1743682033467,1.11421,1795.4,1795.3,1.1142]
[1743682033769,1.11421,1795.4,1795.3,13.52134618]
[1743682034167,1.11421,1795.4,1795.3,12.40714618]
[1743682035065,1.11422,1795.3,1795.2,40.8]
[1743682035265,2.61952,1795.3,1795.2,53.20714618]
[1743682035465,2.61952,1795.3,1795.2,54.32142618]
[1743682035661,1.11417,1795.4,1795.3,1.11422]
[1743682035964,2.6277933,1795.5,1795.4,1.11415]
[1743682036165,2.6277933,1795.5,1795.4,12.40714618]
[1743682036670,1.11422,1795.3,1795.2,40.8]
[1743682036866,1.11428,1795.2,1795.1,0.0083633]
[1743682037070,2.61958,1795.2,1795.1,0.0083633]
[1743682037270,2.61958,1795.2,1795.1,12.41550948]
[1743682037872,2.61958,1795.2,1795.1,13.95290948]
[1743682038261,2.61958,1795.2,1795.1,0.0083633]
[1743682038461,5.11958,1795.2,1795.1,0.0083633]
[1743682040272,5.11958,1795.2,1795.1,3.3e-06]
[1743682040477,5.11958,1795.2,1794.4,3.2078]
[1743682040478,2.78634,1794.8,1794.4,4.32255]
[1743682040774,4.32251,1794.5,1794.4,12.40714618]
[1743682040960,1.1149,1794.2,1794.1,1.4923]
[1743682041169,1.1149,1794.2,1794.1,2.60726]
[1743682041366,1.11489,1794.3,1794.2,1.11487]
[1743682041575,1.1232533,1794.3,1794.2,15.01431618]
[1743682042576,1.1232533,1794.3,1794.2,13.89944618]
[1743682043476,1.1232533,1794.3,1794.2,15.01434618]
[1743682044278,1.1232533,1794.3,1794.2,13.89944618]
[1743682044679,1.1232533,1794.3,1794.2,12.40714618]
[1743682044883,1.11496,1794.1,1794.0,0.0083633]
[1743682045185,4.32276,1794.1,1794.0,0.0083633]
[1743682045368,4.32276,1794.1,1794.0,12.41550948]
[1743682045573,5.74636,1794.1,1794.0,12.41550948]
[1743682046777,2.53856,1794.1,1794.0,12.41550948]
[1743682047080,5.74636,1794.1,1794.0,12.41550948]
[1743682048271,2.53856,1794.1,1794.0,13.87400948]
[1743682049590,5.74636,1794.1,1794.0,13.87400948]
[1743682049984,2.53856,1794.1,1794.0,13.87400948]
[1743682050886,3.2161633,1794.3,1794.2,1.1149]
[1743682051397,3.2161633,1794.3,1794.2,12.40714618]
[1743682051398,4.3310033,1794.3,1794.2,12.40714618]
[1743682051688,4.3310033,1794.3,1794.2,13.93084618]
[1743682052290,4.3310033,1794.3,1794.2,1.5237]
[1743682052488,1.11496,1794.1,1794.0,0.0083633]
[1743682052887,1.11496,1794.1,1794.0,12.41550948]
[1743682053091,4.32276,1794.1,1794.0,12.41550948]
[1743682053289,5.73226,1794.1,1794.0,12.41550948]
[1743682053589,2.52446,1794.1,1794.0,13.90860948]
[1743682054584,4.99293,1794.2,1794.0,13.90860948]
[1743682054888,1.1232033,1794.3,1794.2,1.1149]
[1743682055094,1.1232033,1794.3,1794.2,3.3582]
[1743682055392,1.1232033,1794.3,1794.2,15.76534618]
[1743682055787,0.0083633,1794.3,1794.2,18.26534618]
[1743682056792,1.11467,1794.6,1794.5,1.11471]
[1743682057197,1.11467,1794.6,1794.5,13.52185618]
[1743682057494,1.11467,1794.6,1794.5,12.40714618]
[1743682057993,1.11471,1794.5,1794.4,1.4427]
[1743682058187,2.60451,1794.5,1794.4,13.84984618]
[1743682059189,1.1149,1794.2,1794.1,0.737]
[1743682059495,1.1149,1794.2,1794.1,1.4528]
[1743682059690,1.1149,1794.2,1794.1,13.85994618]
[1743682059992,2.6237,1794.2,1794.1,13.85994618]
[1743682060998,2.6237,1794.2,1794.1,12.40714618]
[1743682061191,1.11496,1794.1,1794.0,0.0083633]
[1743682061497,1.11494,1794.2,1794.1,13.52204618]
[1743682061793,1.11494,1794.2,1794.1,14.55074618]
[1743682062493,1.11494,1794.2,1794.1,15.66570618]
[1743682062696,4.32269,1794.3,1794.2,1.1149]
[1743682062990,1.11489,1794.3,1794.2,14.94094618]
[1743682063191,1.11482,1794.4,1794.3,1.11484]
[1743682063397,1.11484,1794.3,1794.2,1.4189]
[1743682063787,3.2078,1794.5,1794.2,13.82604618]
[1743682063991,4.32256,1794.5,1794.4,1.11477]
[1743682064394,1.11469,1794.6,1794.5,1.11466]
[1743682064594,1.11469,1794.6,1794.5,14.94070618]
[1743682064993,1.11469,1794.6,1794.5,13.82604618]
[1743682066100,1.1149,1794.2,1794.1,0.7247]
[1743682066303,1.1149,1794.2,1794.1,13.85164618]
[1743682066600,1.11496,1794.1,1794.0,0.0083633]
[1743682066799,9.67436,1794.1,1794.0,0.0083633]
[1743682067204,9.67436,1794.1,1794.0,1.4528633]
[1743682069103,4.32276,1794.1,1794.0,14.97502948]
[1743682069303,4.32276,1794.1,1794.0,13.86000948]
[1743682070199,1.11496,1794.1,1794.0,13.86000948]
[1743682070506,1.11496,1794.1,1794.0,14.97502948]
[1743682071400,1.11495,1794.2,1794.1,1.11491]
[1743682071708,1.11495,1794.2,1794.1,13.52205618]
[1743682072407,1.11489,1794.3,1794.2,1.1149]
[1743682072701,1.11489,1794.3,1794.2,14.58434618]
[1743682072893,1.11489,1794.3,1794.2,15.69924618]
[1743682073298,1.11489,1794.3,1794.2,14.58434618]
[1743682073703,1.11489,1794.3,1794.2,15.69924618]
[1743682074610,4.32258,1794.4,1794.3,1.11484]
[1743682074804,4.32258,1794.4,1794.3,14.25418618]
[1743682075308,4.32258,1794.4,1794.3,13.13934618]
[1743682076208,4.32258,1794.4,1794.3,0.7322]
[1743682076405,1.11478,1794.4,1794.3,13.13934618]
[1743682079014,4.32258,1794.4,1794.3,12.40714618]
[1743682079216,1.11478,1794.4,1794.3,13.52198618]
[1743682079405,1.11478,1794.4,1794.3,12.40714618]
[1743682079605,1.11478,1794.4,1794.3,13.52198618]
[1743682079806,1.11478,1794.4,1794.3,12.40714618]
[1743682080012,4.32258,1794.4,1794.3,12.40714618]
[1743682082609,1.11477,1794.5,1794.4,1.11473]
[1743682082811,1.1229833,1794.7,1794.6,1.11465]
[1743682083010,0.0083633,1794.7,1794.6,1.11465]
[1743682083212,1.1229533,1794.7,1794.6,12.40714618]
[1743682083712,2.5299533,1794.7,1794.6,12.40714618]
[1743682084209,1.1229533,1794.7,1794.6,13.52179618]
[1743682084416,0.0083633,1794.7,1794.6,13.52179618]
[1743682084717,1.1229533,1794.7,1794.6,13.52179618]
[1743682085105,3.2078,1795.1,1795.0,1.1144]
[1743682085415,4.32214,1795.1,1795.0,1.1144]
[1743682085616,4.32214,1795.1,1795.0,13.52154618]
[1743682085813,4.32214,1795.1,1795.0,53.20714618]
[1743682087219,1.11434,1795.1,1795.0,53.20714618]
[1743682087715,1.11434,1795.1,1795.0,54.32154618]
[1743682089120,1.11434,1795.1,1795.0,13.52154618]
[1743682090018,1.11434,1795.1,1795.0,12.40714618]
[1743682090918,1.11459,1794.7,1794.6,3.2078]
[1743682091119,5.99406,1794.9,1794.7,12.40714618]
[1743682091419,1.11459,1794.7,1794.6,13.52179618]
[1743682092712,4.30325,1795.0,1794.6,12.40714618]
[1743682092917,1.11453,1794.9,1794.8,1.11449]
[1743682093315,1.11438,1795.1,1795.0,1.1144]
[1743682093822,1.11438,1795.1,1795.0,12.40714618]
[1743682094022,1.11438,1795.1,1795.0,53.20714618]
[1743682094423,1.11438,1795.1,1795.0,54.32154618]
[1743682094819,1.11438,1795.1,1795.0,53.20714618]
[1743682095326,4.32218,1795.1,1795.0,12.40714618]
[1743682095517,2.51238,1795.1,1795.0,12.40714618]
[1743682095723,1.11438,1795.1,1795.0,54.32154618]
[1743682096220,1.11438,1795.1,1795.0,53.20714618]
[1743682096413,4.32218,1795.1,1795.0,12.40714618]
[1743682096824,1.11453,1794.8,1794.7,5.03585]
[1743682097322,1.11453,1794.8,1794.7,17.44299618]
[1743682097521,1.11453,1794.8,1794.7,58.24299618]
[1743682097919,1.11451,1794.9,1794.8,1.11447]
[1743682098118,1.11451,1794.9,1794.8,14.95641618]
[1743682098320,1.11445,1795.0,1794.9,1.11441]
[1743682098520,1.11445,1795.0,1794.9,14.95635618]
[1743682099223,1.11445,1795.0,1794.9,13.84194618]
[1743682099619,2.50125,1795.0,1794.9,13.84194618]
[1743682100514,2.78617,1794.9,1794.5,0.7281]
[1743682100719,1.11459,1794.7,1794.6,12.40714618]
[1743682101123,1.11459,1794.7,1794.5,2.1629]
[1743682101124,1.11465,1794.6,1794.5,1.4348]
[1743682101328,1.11477,1794.4,1794.3,1.4672]
[1743682101826,1.11477,1794.4,1794.3,12.71074618]
[1743682102019,1.11477,1794.4,1794.3,13.82558618]
[1743682102219,1.11476,1794.5,1794.4,1.11473]
[1743682102420,1.11476,1794.5,1794.4,12.35827618]
[1743682103020,1.11476,1794.5,1794.4,53.15827618]
[1743682103422,1.11476,1794.5,1794.4,52.04354618]
[1743682103828,2.61226,1794.5,1794.4,52.04354618]
[1743682104618,1.11476,1794.5,1794.4,53.15831618]
[1743682106027,1.1146,1794.8,1794.7,1.11455]
[1743682106222,1.11463,1794.7,1794.6,1.1146]
[1743682106425,1.11463,1794.7,1794.6,12.35814618]
[1743682110337,1.11463,1794.7,1794.6,11.24354618]
[1743682110830,2.56743,1794.7,1794.6,11.24354618]
[1743682111031,2.56743,1794.7,1794.4,41.91477]
[1743682111032,1.11471,1794.5,1794.4,40.8]
[1743682111231,1.11471,1794.5,1794.4,41.91477]
[1743682111433,1.11471,1794.5,1794.4,53.15831618]
[1743682112844,1.11469,1794.6,1794.5,1.11471]
[1743682113035,1.11469,1794.6,1794.5,12.35825618]
[1743682113236,4.32249,1794.6,1794.5,11.24354618]
[1743682113930,1.11469,1794.6,1794.5,12.35825618]
[1743682114129,1.11469,1794.6,1794.5,11.24354618]
[1743682115228,1.11469,1794.6,1794.5,12.35825618]
[1743682116033,1.11464,1794.7,1794.6,1.11459]
[1743682116228,1.11464,1794.7,1794.6,13.05563618]
[1743682116432,2.50624,1794.7,1794.6,11.24354618]
[1743682118136,2.50624,1794.7,1794.6,12.70944618]
[1743682118840,2.50624,1794.7,1794.6,11.24354618]
[1743682119038,7.07354,1794.7,1794.6,11.24354618]
[1743682120329,1.11484,1794.3,1794.2,56.196]
[1743682120534,1.11496,1794.1,1794.0,1.4530633]
[1743682120932,1.11496,1794.1,1794.0,53.49660948]
[1743682121633,4.32276,1794.1,1794.0,52.05190948]
[1743682122232,5.85566,1794.1,1794.0,52.05190948]
[1743682122639,5.85566,1794.1,1794.0,11.25190948]
[1743682123142,2.64786,1794.1,1794.0,11.25190948]
[1743682123435,1.11496,1794.1,1794.0,12.36692948]
[1743682123630,1.11496,1794.1,1794.0,12.72090948]
[1743682124032,4.32276,1794.1,1794.0,11.25190948]
[1743682124637,4.32276,1794.1,1794.0,12.72090948]
[1743682125243,4.32276,1794.1,1794.0,11.25190948]
[1743682125740,1.11496,1794.1,1794.0,11.25190948]
[1743682126443,1.11496,1794.1,1794.0,12.66930948]
[1743682128444,4.32276,1794.1,1794.0,12.66930948]
[1743682130638,4.32276,1794.1,1794.0,13.78432948]
[1743682130639,1.11496,1794.1,1794.0,13.78432948]
[1743682132344,1.11496,1794.1,1794.0,2.5407833]
[1743682132645,1.11496,1794.1,1794.0,13.78432948]
[1743682133949,1.11495,1794.2,1794.1,1.1149]
[1743682134244,1.1149,1794.3,1794.2,1.1149]
[1743682134436,1.1149,1794.3,1794.2,14.47384618]
[1743682139541,3.2078,1794.5,1794.2,16.14616618]
[1743682139738,4.32251,1794.5,1794.4,1.11477]
[1743682140138,4.32251,1794.5,1794.4,13.84321618]
[1743682140648,1.11471,1794.5,1794.4,13.84321618]
[1743682141148,1.11471,1794.5,1794.4,12.72844618]
[1743682141845,1.1147,1794.6,1794.4,12.72844618]
[1743682142051,1.1147,1794.6,1794.5,11.24354618]
[1743682142245,8.4614,1794.7,1794.2,0.7215]
[1743682142451,1.11496,1794.1,1794.0,2.5989533]
[1743682142946,1.11496,1794.1,1794.0,11.25190948]
[1743682143141,2.59756,1794.1,1794.0,12.36692948]
[1743682143344,6.9878,1794.4,1794.0,11.25190948]
[1743682143545,1.11491,1794.3,1794.2,1.11488]
[1743682143841,1.1149,1794.2,1794.1,12.35845618]
[1743682144045,8.4704,1794.4,1794.0,0.0083633]
[1743682144248,1.11496,1794.1,1794.0,11.25190948]
[1743682144646,2.60206,1794.1,1794.0,11.25190948]
[1743682146152,2.60206,1794.1,1794.0,12.36692948]
[1743682146348,1.11496,1794.1,1794.0,12.36692948]
[1743682146646,4.32265,1794.4,1794.3,1.11484]
[1743682146849,1.11475,1794.5,1794.4,1.11477]
[1743682147046,1.11475,1794.5,1794.4,12.35831618]
[1743682147241,1.11469,1794.6,1794.5,1.11465]
[1743682147441,1.11465,1794.7,1794.6,1.11465]
[1743682147642,1.11465,1794.7,1794.6,12.35819618]
[1743682147845,3.2078,1794.8,1794.7,1.11459]
[1743682147846,4.32236,1794.8,1794.7,1.11459]
[1743682148048,4.32236,1794.8,1794.7,13.12113618]